fUST/lending_fUST_20250811
["ID","MTS","AMOUNT","RATE_DAILY","PERIOD"]
[378537666,1754907039102,-500.0,0.00022873,2]
[378537667,1754907039112,-500.0,0.00022873,2]
[378537668,1754907039122,-150.0,0.00022873,2]
[378537669,1754907039131,-500.0,0.00022873,2]
[378537670,1754907039141,-500.0,0.00022873,2]
[378537671,1754907039151,-500.0,0.00022873,2]
[378537672,1754907039160,-188.47570756,0.00022873,2]
[378537673,1754907039169,-500.0,0.00022873,2]
[378537674,1754907039179,-500.0,0.00022873,2]
[378537675,1754907039188,-500.0,0.00022873,2]
[378537676,1754907039197,-158.46371259,0.00022873,2]
[378537677,1754907039206,-165.05050708,0.00022873,2]
[378537678,1754907039216,-500.0,0.00022873,2]
[378537679,1754907039225,-157.96167722,0.00022873,2]
[378537680,1754907039234,-500.0,0.00022873,2]
[378537681,1754907039243,-181.07257143,0.00022873,2]
[378537682,1754907039253,-158.46471794,0.00022873,2]
[378537683,1754907039263,-500.0,0.00022873,2]
[378537684,1754907039273,-158.46401038,0.00022873,2]
[378537685,1754907039283,-500.0,0.00022873,2]
[378537686,1754907039293,-500.0,0.00022873,2]
[378537687,1754907039303,-500.0,0.00022873,2]
[378537688,1754907039313,-158.4649633,0.00022873,2]
[378537689,1754907039323,-160.06669641,0.00022873,2]
[378537690,1754907039332,-158.46621791,0.00022873,2]
[378537691,1754907039342,-158.04855828,0.00022873,2]
[378537692,1754907039351,-500.0,0.00022873,2]
[378537693,1754907039362,-160.46559195,0.00022873,2]
[378537694,1754907039372,-160.06680905,0.00022873,2]
[378537695,1754907039381,-157.46260862,0.00022873,2]
[378537696,1754907039392,-159.45114521,0.00022873,2]
[378537697,1754907039401,-500.0,0.00022873,2]
[378537698,1754907039411,-158.04855829,0.00022873,2]
[378537699,1754907039421,-260.55026,0.00022873,2]
[378537700,1754907039430,-341.62190171,0.00022873,2]
[378537701,1754907039440,-158.04855828,0.00022873,2]
[378537702,1754907039450,-205.90481094,0.00022873,2]
[378537704,1754907039460,-500.0,0.00022873,2]
[378537706,1754907039469,-500.0,0.00022873,2]
[378537707,1754907039479,-500.0,0.00022873,2]
[378537708,1754907039488,-173.54530953,0.00022873,2]
[378537709,1754907039498,-500.0,0.00022873,2]
[378537710,1754907039507,-500.0,0.00022873,2]
[378537712,1754907039517,-340.52011149,0.00022873,2]
[378537713,1754907039527,-500.0,0.00022873,2]
[378537714,1754907039536,-158.44868159,0.00022873,2]
[378537715,1754907039546,-160.06638324,0.00022873,2]
[378537716,1754907039555,-248.49009127,0.00022873,2]
[378537717,1754907039564,-500.0,0.00022873,2]
[378537718,1754907039574,-500.0,0.00022873,2]
[378537719,1754907039583,-500.0,0.00022873,2]
[378537720,1754907039591,-158.46577498,0.00022873,2]
[378537721,1754907039601,-158.46444877,0.00022873,2]
[378537722,1754907039610,-160.06066016,0.00022873,2]
[378537723,1754907039619,-258.46697977,0.00022873,2]
[378537724,1754907039629,-505.80135323,0.00022873,2]
[378537725,1754907039639,-500.0,0.00022873,2]
[378537726,1754907039648,-261.45627301,0.00022873,2]
[378537727,1754907039657,-500.0,0.00022873,2]
[378537728,1754907039666,-500.0,0.00022873,2]
[378537729,1754907039675,-500.0,0.00022873,2]
[378537730,1754907039691,-500.0,0.00022873,2]
[378537731,1754907039701,-526.09887862,0.00022873,2]
[378537732,1754907039711,-158.46419246,0.00022873,2]
[378537733,1754907039721,-158.7591481,0.00022873,2]
[378537734,1754907039732,-500.0,0.00022873,2]
[378537735,1754907039742,-500.0,0.00022873,2]
[378537736,1754907039752,-500.0,0.00022873,2]
[378537737,1754907039761,-500.0,0.00022873,2]
[378537738,1754907039771,-500.0,0.00022873,2]
[378537739,1754907039780,-500.0,0.00022873,2]
[378537740,1754907039790,-500.0,0.00022873,2]
[378537742,1754907039800,-500.0,0.00022873,2]
[378537744,1754907039811,-500.0,0.00022873,2]
[378537746,1754907039821,-500.0,0.00022873,2]
[378537748,1754907039830,-649.78876618,0.00022873,2]
[378537750,1754907039839,-500.0,0.00022873,2]
[378537751,1754907039849,-500.0,0.00022873,2]
[378537752,1754907039858,-168.72970159,0.00022873,2]
[378537754,1754907039868,-500.0,0.00022873,2]
[378537756,1754907039877,-500.0,0.00022873,2]
[378537758,1754907039887,-500.0,0.00022873,2]
[378537760,1754907039897,-500.0,0.00022873,2]
[378537762,1754907039906,-500.0,0.00022873,2]
[378537764,1754907039915,-500.0,0.00022873,2]
[378537766,1754907039924,-500.0,0.00022873,2]
[378537768,1754907039934,-500.0,0.00022873,2]
[378537769,1754907039944,-500.0,0.00022873,2]
[378537771,1754907039953,-500.0,0.00022873,2]
[378537773,1754907039964,-340.91787696,0.00022873,2]
[378537775,1754907039976,-500.0,0.00022873,2]
[378537777,1754907039985,-500.0,0.00022873,2]
[378537779,1754907039995,-621.55254894,0.00022873,2]
[378537781,1754907040005,-500.0,0.00022873,2]
[378537783,1754907040014,-445.11431374,0.00022873,2]
[378537785,1754907040023,-500.0,0.00022873,2]
[378537787,1754907040032,-500.0,0.00022873,2]
[378537789,1754907040042,-370000.0,0.000229,2]
[378537791,1754907040053,-151.0,0.000229,5]
[378537793,1754907040062,-46641.88,0.000229,2]
[378537795,1754907040071,-500.0,0.00022964,2]
[378537797,1754907040080,-500.0,0.00022965,2]
[378537799,1754907040089,-160.0,0.00023,2]
[378537801,1754907040098,-1007.7,0.00023005,3]
[378537803,1754907040107,-159.0,0.00023014,7]
[378537805,1754907040117,-4030.82,0.00023015,3]
[378537807,1754907040126,-2015.4,0.00023015,3]
[378537809,1754907040138,-266.1,0.00023022,2]
[378537811,1754907040147,-1500.0,0.00023068,2]
[378537813,1754907040157,-500.0,0.00023068,2]
[378537815,1754907040167,-500.0,0.00023068,2]
[378537817,1754907040176,-870.62892627,0.00023068,2]
[378537819,1754907040186,-460.0,0.00023077,2]
[378537821,1754907040196,-151.0,0.000231,5]
[378537823,1754907040206,-151.0,0.000232,9]
[378537825,1754907040216,-1000.0,0.00023221,2]
[378537827,1754907040226,-1000.0,0.00023221,2]
[378537829,1754907040236,-411.46417417,0.00023221,2]
[378537831,1754907040245,-1000.0,0.00023221,2]
[378537833,1754907040255,-2501.06,0.00023238,2]
[378537834,1754907040264,-500.0,0.00023238,2]
[378537835,1754907040273,-500.0,0.00023239,2]
[378537836,1754907040283,-533.44544465,0.00023297,2]
[378537837,1754907040292,-151.0,0.000233,6]
[378537838,1754907040301,-10408.07071482,0.0002335,2]
[378537839,1754907040314,-5162.72,0.000234,7]
[378537840,1754907040461,-151.0,0.000234,10]
[378537841,1754907040471,-6481.49358908,0.00023409,2]
[378537842,1754907040481,-1000.0,0.00023421,2]
[378537843,1754907040491,-1000.0,0.00023421,2]
[378537844,1754907040500,-250.0,0.00023421,2]
[378537845,1754907040510,-1000.0,0.00023421,2]
[378537846,1754907040519,-1000.0,0.00023421,2]
[378537847,1754907040529,-1000.0,0.00023421,2]
[378537848,1754907040538,-1000.0,0.00023421,2]
[378537849,1754907040547,-1000.0,0.00023421,2]
[378537850,1754907040556,-1000.0,0.00023421,2]
[378537851,1754907040566,-1000.0,0.00023421,2]
[378537852,1754907040576,-1000.0,0.00023421,2]
[378537853,1754907040585,-1001.36665835,0.00023421,2]
[378537854,1754907040595,-1000.0,0.00023421,2]
[378537855,1754907040605,-1000.0,0.00023421,2]
[378537856,1754907040615,-583.93173583,0.00023421,2]
[378537858,1754907040625,-1000.0,0.00023421,2]
[378537859,1754907040635,-1000.0,0.00023421,2]
[378537860,1754907040646,-1000.0,0.00023421,2]
[378537861,1754907040655,-1000.0,0.00023421,2]
[378537862,1754907040664,-1000.0,0.00023421,2]
[378537863,1754907040674,-1000.0,0.00023421,2]
[378537864,1754907040684,-1015.7482093,0.00023421,2]
[378537865,1754907040694,-1000.0,0.00023421,2]
[378537866,1754907040704,-1113.81959935,0.00023421,2]
[378537867,1754907040714,-1000.0,0.00023421,2]
[378537868,1754907040723,-164.91958653,0.00023421,2]
[378537869,1754907040733,-460.07199425,0.00023421,2]
[378537870,1754907040743,-1000.0,0.00023421,2]
[378537871,1754907040754,-1000.0,0.00023421,2]
[378537872,1754907040765,-1000.0,0.00023421,2]
[378537873,1754907040775,-1000.0,0.00023421,2]
[378537874,1754907040785,-894.7992208,0.00023421,2]
[378537875,1754907040796,-1000.0,0.00023421,2]
[378537876,1754907040808,-1000.0,0.00023421,2]
[378537877,1754907040818,-1000.0,0.00023421,2]
[378537878,1754907040830,-1000.0,0.00023421,2]
[378537879,1754907040840,-948.3863004,0.00023421,2]
[378537880,1754907040851,-1000.0,0.00023421,2]
[378537881,1754907040861,-349.32952212,0.00023421,2]
[378537882,1754907040871,-694.98735988,0.00023421,2]
[378537883,1754907040881,-559.01620708,0.00023421,2]
[378537884,1754907040894,-1000.0,0.00023421,2]
[378537885,1754907040904,-1000.0,0.00023421,2]
[378537886,1754907040914,-1000.0,0.00023421,2]
[378537887,1754907040924,-1000.0,0.00023421,2]
[378537888,1754907040934,-1000.0,0.00023421,2]
[378537889,1754907040944,-1054.29165515,0.00023421,2]
[378537890,1754907040954,-1000.0,0.00023421,2]
[378537891,1754907040965,-1000.0,0.00023421,2]
[378537892,1754907040979,-1000.0,0.00023421,2]
[378537893,1754907040989,-720.72400512,0.00023421,2]
[378537894,1754907040998,-504.72208807,0.00023421,2]
[378537895,1754907041008,-1000.0,0.00023421,2]
[378537896,1754907041018,-500.0,0.00023473,2]
[378537897,1754907041028,-199352.21,0.000235,7]
[378537898,1754907041037,-527.9539256,0.000235,7]
[378537899,1754907041049,-417.15472785,0.000235,7]
[378537900,1754907041059,-461.69158338,0.000235,7]
[378537901,1754907041068,-215.4905783,0.000235,7]
[378537902,1754907041078,-160.0,0.000235,7]
[378537903,1754907041088,-12671.21867243,0.000235,7]
[378537904,1754907041098,-589.411445,0.00023512,2]
[378537905,1754907041109,-500.0,0.00023512,2]
[378537906,1754907041119,-500.0,0.00023513,2]
[378537907,1754907041129,-255.0,0.00023513,2]
[378537908,1754907041139,-266.1,0.00023542,2]
[378537909,1754907041149,-2000.0,0.00023616,2]
[378537910,1754907041159,-560.0,0.00023625,2]
[378537911,1754907041168,-151.0,0.000237,9]
[378537912,1754907041178,-151.0,0.000237,5]
[378537913,1754907041187,-448.0,0.00023709,2]
[378537914,1754907041196,-397.0,0.00023709,2]
[378537915,1754907041206,-10737.81221644,0.00023713,2]
[378537916,1754907041216,-10737.81221644,0.00023766,2]
[378537917,1754907041225,-374.04348263,0.00023768,2]
[378537918,1754907041235,-500.0,0.00023786,2]
[378537919,1754907041244,-158.23811138,0.00023787,2]
[378537920,1754907041253,-3618.09311013,0.000239,2]
[378537921,1754907041262,-2351.0,0.00023937,2]
[378537922,1754907041272,-1511.4557955,0.00023968,2]
[378537923,1754907041281,-1618.9174315,0.00023968,2]
[378537924,1754907041290,-350.0,0.00023968,2]
[378537925,1754907041299,-1500.0,0.00023968,2]
[378537926,1754907041309,-505.53108855,0.00023968,2]
[378537927,1754907041318,-610.17885671,0.00023968,2]
[378537928,1754907041328,-502.04359418,0.00023968,2]
[378537929,1754907041338,-1000.295685,0.00023968,2]
[378537930,1754907041347,-1500.0,0.00023968,2]
[378537931,1754907041356,-1500.0,0.00023968,2]
[378537932,1754907041365,-1003.65601248,0.00023968,2]
[378537933,1754907041374,-1500.0,0.00023968,2]
[378537934,1754907041383,-1500.0,0.00023968,2]
[378537935,1754907041395,-1500.0,0.00023968,2]
[378537936,1754907041404,-1500.0,0.00023968,2]
[378537937,1754907041414,-1500.0,0.00023968,2]
[378537938,1754907041423,-1068.94013335,0.00023968,2]
[378537939,1754907041433,-1503.03109077,0.00023968,2]
[378537940,1754907041443,-1500.0,0.00023968,2]
[378537941,1754907041453,-1500.0,0.00023968,2]
[378537942,1754907041462,-1500.0,0.00023968,2]
[378537943,1754907041472,-1500.0,0.00023968,2]
[378537944,1754907041481,-1500.0,0.00023968,2]
[378537945,1754907041490,-1500.0,0.00023968,2]
[378537946,1754907041500,-533.26908801,0.00023968,2]
[378537947,1754907041509,-1500.0,0.00023968,2]
[378537948,1754907041519,-920.41389619,0.00023968,2]
[378537949,1754907041528,-1000.0,0.00023968,2]
[378537950,1754907041537,-1500.0,0.00023968,2]
[378537951,1754907041546,-1500.0,0.00023968,2]
[378537952,1754907041555,-1500.0,0.00023968,2]
[378537953,1754907041565,-412.55755664,0.00023968,2]
[378537954,1754907041575,-512.97111923,0.00023968,2]
[378537955,1754907041584,-501.71607261,0.00023968,2]
[378537956,1754907041593,-1000.0,0.00023968,2]
[378537957,1754907041605,-574.589025,0.00023968,2]
[378537958,1754907041614,-1193.51165643,0.00023968,2]
[378537959,1754907041624,-1500.0,0.00023968,2]
[378537960,1754907041634,-381.08,0.00023997,2]
[378537961,1754907041644,-13154.25,0.00024,7]
[378537962,1754907041655,-216.68257536,0.00024,7]
[378537963,1754907041665,-160.0,0.00024,7]
[378537964,1754907041674,-160.0,0.00024,7]
[378537965,1754907041683,-160.0,0.00024,7]
[378537966,1754907041693,-843.18994796,0.00024,7]
[378537967,1754907041703,-231.9940742,0.00024,7]
[378537968,1754907041712,-160.0,0.00024,7]
[378537969,1754907041721,-46641.88,0.00024,2]
[378537970,1754907041731,-150.0,0.00024003,2]
[378537971,1754907041740,-266.1,0.00024062,3]
[378537972,1754907041750,-151.0,0.000241,10]
[378537973,1754907041759,-50022.35,0.000241,7]
[378537974,1754907041768,-861.0,0.00024111,2]
[378537975,1754907041777,-2500.0,0.00024164,2]
[378537976,1754907041787,-165.0,0.00024164,7]
[378537977,1754907041796,-660.0,0.00024173,2]
[378537978,1754907041806,-861.0,0.00024253,2]
[378537979,1754907041815,-861.0,0.0002432,2]
[378537980,1754907041825,-861.0,0.00024381,2]
[378537981,1754907041835,-2501.06,0.00024475,2]
[378537982,1754907041845,-589.411445,0.00024492,2]
[378537983,1754907041854,-151.0,0.000245,9]
[378537984,1754907041864,-450.0,0.00024516,2]
[378537985,1754907041873,-2000.0,0.00024516,2]
[378537986,1754907041882,-2000.0,0.00024516,2]
[378537987,1754907041892,-2000.0,0.00024516,2]
[378537988,1754907041902,-2000.0,0.00024516,2]
[378537989,1754907041911,-1503.56883502,0.00024516,2]
[378537990,1754907041920,-1932.11020015,0.00024516,2]
[378537991,1754907041929,-781.08662514,0.00024516,2]
[378537992,1754907041939,-2000.0,0.00024516,2]
[378537993,1754907041949,-500.93361564,0.00024516,2]
[378537994,1754907041958,-570.05000165,0.00024516,2]
[378537995,1754907041971,-1190.45352022,0.00024516,2]
[378537996,1754907041980,-590.92139691,0.00024516,2]
[378537997,1754907041990,-2000.0,0.00024516,2]
[378537998,1754907041999,-2000.0,0.00024516,2]
[378537999,1754907042010,-652.41906297,0.00024516,2]
[378538000,1754907042019,-2001.68469329,0.00024516,2]
[378538001,1754907042028,-2000.0,0.00024516,2]
[378538002,1754907042038,-2000.0,0.00024516,2]
[378538003,1754907042047,-2110.89031043,0.00024516,2]
[378538004,1754907042056,-442.65056221,0.0002456,2]
[378538005,1754907042065,-1000.0,0.00024568,2]
[378538006,1754907042074,-266.1,0.00024582,3]
[378538007,1754907042084,-861.0,0.00024583,2]
[378538008,1754907042093,-200.0,0.00024584,15]
[378538009,1754907042102,-200.0,0.00024584,15]
[378538010,1754907042111,-200.0,0.00024584,15]
[378538011,1754907042120,-200.0,0.00024584,15]
[378538012,1754907042129,-200.0,0.00024584,15]
[378538013,1754907042139,-200.0,0.00024584,15]
[378538014,1754907042148,-200.0,0.00024584,15]
[378538015,1754907042158,-200.0,0.00024584,15]
[378538016,1754907042167,-358.0,0.00024584,15]
[378538017,1754907042177,-861.0,0.00024631,2]
[378538018,1754907042187,-3262.03,0.00024657,4]
[378538019,1754907042198,-380.0,0.00024658,2]
[378538020,1754907042208,-200.0,0.00024658,15]
[378538021,1754907042217,-151.0,0.00024658,2]
[378538022,1754907042228,-500.0,0.00024658,2]
[378538023,1754907042239,-5162.72,0.000247,7]
[378538024,1754907042249,-2151.0,0.00024709,2]
[378538025,1754907042259,-971.0,0.00024709,2]
[378538026,1754907042268,-636.0,0.00024709,2]
[378538027,1754907042277,-408.0,0.00024709,2]
[378538029,1754907042286,-416.844,0.00024709,2]
[378538030,1754907042295,-3000.0,0.00024712,2]
[378538031,1754907042305,-760.0,0.00024721,2]
[378538032,1754907042314,-2000.0,0.000248,2]
[378538033,1754907042323,-8734.38280605,0.000248,2]
[378538034,1754907042331,-10408.07071482,0.000248,2]
[378538035,1754907042340,-861.0,0.00024846,2]
[378538036,1754907042349,-861.0,0.00024869,2]
[378538037,1754907042359,-500.0,0.00024873,2]
[378538038,1754907042368,-150.0,0.00024873,2]
[378538039,1754907042377,-160.0,0.0002489,3]
[378538040,1754907042386,-11979.12456389,0.000249,2]
[378538041,1754907042396,-527.9539256,0.000249,3]
[378538042,1754907042405,-216.68257536,0.000249,3]
[378538043,1754907042414,-501.0,0.000249,2]
[378538044,1754907042423,-160.0,0.000249,3]
[378538045,1754907042432,-499.00000001,0.000249,2]
[378538047,1754907042441,-160.0,0.000249,3]
[378538049,1754907042450,-3019.42086587,0.000249,2]
[378538050,1754907042459,-160.0,0.000249,3]
[378538051,1754907042468,-160.0,0.000249,3]
[378538052,1754907042477,-417.15472785,0.000249,3]
[378538053,1754907042486,-746392.520231,0.000249,2]
[378538054,1754907042495,-843.18994796,0.000249,3]
[378538055,1754907042504,-231.9940742,0.000249,3]
[378538056,1754907042513,-461.69158338,0.000249,3]
[378538057,1754907042522,-160.0,0.000249,3]
[378538058,1754907042532,-215.4905783,0.000249,3]
[378538059,1754907042541,-160.0,0.000249,3]
[378538060,1754907042550,-12671.21867243,0.000249,3]
[378538061,1754907042559,-231.0,0.00024923,2]
[378538062,1754907042568,-151.89557265,0.00024932,2]
[378538063,1754907042577,-500.0,0.00024932,2]
[378538064,1754907042586,-250.0,0.00024937,2]
[378538065,1754907042595,-1000.0,0.00024943,2]
[378538066,1754907042604,-300.0,0.00024943,2]
[378538067,1754907042613,-151.0,0.00024943,2]
[378538068,1754907042622,-1000.0,0.00024943,2]
[378538069,1754907042631,-300.0,0.00024943,2]
[378538070,1754907042641,-151.0,0.00024943,2]
[378538071,1754907042650,-151.0,0.00024943,2]
[378538072,1754907042660,-151.0,0.00024943,2]
[378538073,1754907042669,-151.0,0.00024943,2]
[378538074,1754907042678,-1000.0,0.00024943,2]
[378538075,1754907042687,-300.0,0.00024943,2]
[378538076,1754907042697,-151.0,0.00024943,2]
[378538077,1754907042705,-151.0,0.00024943,2]
[378538078,1754907042715,-300.0,0.00024943,2]
[378538079,1754907042855,-1000.0,0.00024943,2]
[378538080,1754907042865,-151.0,0.00024943,2]
[378538081,1754907042875,-151.0,0.00024943,2]
[378538082,1754907042884,-300.0,0.00024943,2]
[378538083,1754907042895,-151.0,0.00024943,2]
[378538084,1754907042904,-1000.0,0.00024943,2]
[378538085,1754907042914,-151.0,0.00024943,2]
[378538086,1754907042924,-151.0,0.00024943,2]
[378538088,1754907042933,-300.0,0.00024943,2]
[378538089,1754907042943,-1000.0,0.00024943,2]
[378538090,1754907042952,-151.0,0.00024943,2]
[378538091,1754907042961,-151.0,0.00024943,2]
[378538092,1754907042975,-151.0,0.00024943,2]
[378538094,1754907042984,-1000.0,0.00024943,2]
[378538095,1754907042993,-300.0,0.00024943,2]
[378538096,1754907043002,-151.0,0.00024943,2]
[378538097,1754907043012,-151.0,0.00024943,2]
[378538098,1754907043022,-151.0,0.00024943,2]
[378538099,1754907043031,-1000.0,0.00024943,2]
[378538100,1754907043041,-300.0,0.00024943,2]
[378538101,1754907043051,-151.0,0.00024943,2]
[378538102,1754907043061,-151.0,0.00024943,2]
[378538103,1754907043071,-151.0,0.00024943,2]
[378538104,1754907043081,-172.16357621,0.00024943,2]
[378538105,1754907043090,-151.0,0.00024943,2]
[378538106,1754907043099,-151.0,0.00024943,2]
[378538107,1754907043109,-151.0,0.00024943,2]
[378538108,1754907043118,-151.0,0.00024943,2]
[378538109,1754907043128,-151.0,0.00024943,2]
[378538110,1754907043137,-300.0,0.00024943,2]
[378538111,1754907043149,-151.0,0.00024943,2]
[378538113,1754907043158,-151.0,0.00024943,2]
[378538115,1754907043167,-151.0,0.00024943,2]
[378538116,1754907043176,-151.0,0.00024943,2]
[378538117,1754907043186,-151.0,0.00024943,2]
[378538118,1754907043195,-300.0,0.00024943,2]
[378538119,1754907043204,-151.0,0.00024943,2]
[378538120,1754907043214,-151.0,0.00024943,2]
[378538121,1754907043223,-151.0,0.00024943,2]
[378538122,1754907043232,-151.0,0.00024943,2]
[378538123,1754907043241,-151.0,0.00024943,2]
[378538124,1754907043250,-300.0,0.00024943,2]
[378538125,1754907043259,-151.0,0.00024943,2]
[378538126,1754907043268,-151.0,0.00024943,2]
[378538127,1754907043277,-151.0,0.00024943,2]
[378538128,1754907043286,-151.0,0.00024943,2]
[378538129,1754907043295,-151.0,0.00024943,2]
[378538130,1754907043304,-300.0,0.00024943,2]
[378538131,1754907043313,-2183.31810187,0.00024943,2]
[378538132,1754907043322,-151.0,0.00024943,2]
[378538133,1754907043331,-151.0,0.00024943,2]
[378538134,1754907043340,-151.0,0.00024943,2]
[378538135,1754907043349,-151.0,0.00024943,2]
[378538136,1754907043358,-151.0,0.00024943,2]
[378538137,1754907043367,-151.0,0.00024943,2]
[378538138,1754907043376,-151.0,0.00024943,2]
[378538139,1754907043386,-300.0,0.00024943,2]
[378538140,1754907043396,-151.0,0.00024943,2]
[378538141,1754907043405,-151.0,0.00024943,2]
[378538142,1754907043414,-151.0,0.00024943,2]
[378538143,1754907043423,-151.0,0.00024943,2]
[378538144,1754907043432,-151.0,0.00024943,2]
[378538145,1754907043442,-151.0,0.00024943,2]
[378538146,1754907043451,-151.0,0.00024943,2]
[378538147,1754907043460,-151.0,0.00024943,2]
[378538148,1754907043470,-151.0,0.00024943,2]
[378538149,1754907043479,-151.0,0.00024943,2]
[378538150,1754907043488,-151.0,0.00024943,2]
[378538151,1754907043498,-151.0,0.00024943,2]
[378538152,1754907043507,-151.0,0.00024943,2]
[378538153,1754907043516,-151.0,0.00024943,2]
[378538154,1754907043526,-151.0,0.00024943,2]
[378538155,1754907043535,-151.0,0.00024943,2]
[378538156,1754907043544,-250.0,0.00024943,2]
[378538157,1754907043553,-151.0,0.00024943,2]
[378538158,1754907043562,-152.94290677,0.00024943,2]
[378538159,1754907043571,-229.41815613,0.00024943,2]
[378538160,1754907043581,-250.0,0.00024943,2]
[378538161,1754907043591,-250.0,0.00024943,2]
[378538162,1754907043601,-18502.69577858,0.00024943,2]
[378538163,1754907043611,-250.0,0.00024943,2]
[378538164,1754907043621,-250.0,0.00024943,2]
[378538165,1754907043630,-250.0,0.00024943,2]
[378538166,1754907043639,-151.0,0.00024943,2]
[378538167,1754907043649,-250.0,0.00024943,2]
[378538168,1754907043659,-151.0,0.00024943,2]
[378538169,1754907043668,-250.0,0.00024943,2]
[378538170,1754907043677,-151.0,0.00024943,2]
[378538171,1754907043687,-250.0,0.00024943,2]
[378538172,1754907043696,-151.0,0.00024943,2]
[378538173,1754907043705,-250.0,0.00024943,2]
[378538174,1754907043716,-151.0,0.00024943,2]
[378538175,1754907043726,-151.0,0.00024943,2]
[378538176,1754907043737,-250.0,0.00024943,2]
[378538177,1754907043747,-250.0,0.00024943,2]
[378538178,1754907043757,-151.0,0.00024943,2]
[378538179,1754907043767,-250.0,0.00024943,2]
[378538180,1754907043778,-151.0,0.00024943,2]
[378538181,1754907043787,-250.0,0.00024943,2]
[378538182,1754907043797,-151.0,0.00024943,2]
[378538183,1754907043806,-250.0,0.00024943,2]
[378538184,1754907043816,-151.0,0.00024943,2]
[378538185,1754907043825,-250.0,0.00024943,2]
[378538186,1754907043835,-151.0,0.00024943,2]
[378538187,1754907043848,-151.0,0.00024943,2]
[378538188,1754907043857,-151.0,0.00024943,2]
[378538189,1754907043867,-151.0,0.00024943,2]
[378538190,1754907043877,-151.0,0.00024943,2]
[378538191,1754907043886,-151.0,0.00024943,2]
[378538192,1754907043899,-206.234,0.0002497,2]
[378538193,1754907043908,-250.0,0.0002497,2]
[378538194,1754907043917,-220.454,0.0002497,2]
[378538195,1754907043928,-250.0,0.0002497,2]
[378538196,1754907043937,-261.02,0.0002497,2]
[378538197,1754907043947,-219.814,0.0002497,2]
[378538198,1754907043956,-533.44544465,0.00024996,2]
[378538199,1754907043966,-2264.10087164,0.00024998,2]
[378538200,1754907043979,-231.0,0.00025037,2]
[378538201,1754907043988,-231.0,0.0002504,2]
[378538202,1754907043997,-2347.87260389,0.00025053,2]
[378538203,1754907044007,-231.0,0.00025059,2]
[378538204,1754907044017,-550.0,0.00025064,2]
[378538205,1754907044026,-2068.53565647,0.00025064,2]
[378538206,1754907044037,-2500.0,0.00025064,2]
[378538207,1754907044047,-2500.0,0.00025064,2]
[378538208,1754907044057,-1557.71042184,0.00025064,2]
[378538209,1754907044066,-2500.0,0.00025064,2]
[378538210,1754907044076,-2500.0,0.00025064,2]
[378538211,1754907044086,-2500.0,0.00025064,2]
[378538212,1754907044096,-462.45925946,0.00025064,2]
[378538213,1754907044106,-2177.40885409,0.00025064,2]
[378538214,1754907044117,-381.08,0.00025095,2]
[378538215,1754907044126,-164.0,0.00025096,15]
[378538216,1754907044136,-13154.25,0.000251,7]
[378538217,1754907044148,-527.9539256,0.000251,10]
[378538218,1754907044158,-216.68257536,0.000251,10]
[378538219,1754907044167,-160.0,0.000251,10]
[378538220,1754907044177,-160.0,0.000251,10]
[378538221,1754907044187,-160.0,0.000251,10]